fUST/lending_fUST_20250430
["ID","MTS","AMOUNT","RATE_DAILY","PERIOD"]
[359425180,1746005980754,-3287.49423063,0.00040281,45]
[359425181,1746005980778,-866.58884722,0.00040281,30]
[359425182,1746005980807,-433.16297251,0.00040281,120]
[359425183,1746005980836,-612.29210014,0.00040281,30]
[359425184,1746005980861,-248.34638802,0.00040281,60]
[359425185,1746005980887,-1175.58686532,0.00040281,30]
[359425186,1746005980913,-260.09219876,0.00040281,120]
[359425187,1746005980938,-543.23825661,0.00040281,120]
[359425188,1746005980963,-350.09065025,0.00040281,60]
[359425189,1746005980987,-910.04717484,0.00040281,120]
[359425190,1746005981013,-1668.94324167,0.00040281,120]
[359425191,1746005981038,-1378.6766674,0.00040281,120]
[359425192,1746005981069,-839.40657258,0.00040281,120]
[359425193,1746005981094,-683.92155403,0.00040281,120]
[359425194,1746005981118,-310.45517676,0.00040281,31]
[359425195,1746005981140,-2987.07753626,0.00040281,60]
[359425196,1746005981163,-240.82074905,0.00040281,120]
[359425197,1746005981186,-254.31632455,0.00040281,120]
[359425198,1746005981209,-535.59840569,0.00040281,30]
[359425199,1746005981231,-1341.80923678,0.00040281,120]
[359425200,1746005981254,-478.04654895,0.00040281,60]
[359425201,1746005981276,-2000.0,0.00040281,120]
[359425202,1746005981299,-242.42492762,0.00040281,30]
[359425203,1746005981322,-1093.59769795,0.00040281,120]
[359425204,1746005981345,-3160.62956043,0.00040281,120]
[359425205,1746005981368,-193.33664181,0.00040281,30]
[359425206,1746005981392,-2581.85278096,0.00040281,120]
[359425207,1746005981414,-640.726922,0.00040281,60]
[359425208,1746005981436,-1001.08181147,0.00040281,120]
[359425209,1746005981459,-186.5565828,0.00040281,30]
[359425210,1746005981482,-1769.84069571,0.00040281,30]
[359425211,1746005981505,-443.40763551,0.00040281,120]
[359425212,1746005981537,-214.53221806,0.00040281,120]
[359425213,1746005981562,-327.62003726,0.00040281,120]
[359425214,1746005981585,-423.84151167,0.00040281,120]
[359425215,1746005981609,-1540.79352236,0.00040281,120]
[359425216,1746005981632,-314.95161126,0.00040281,120]
[359425217,1746005981656,-202.45696699,0.00040281,120]
[359425218,1746005981682,-176.72101251,0.00040281,30]
[359425219,1746005981704,-3087.08952848,0.00040281,120]
[359425220,1746005981726,-1795.5095564,0.00040281,120]
[359425221,1746005981749,-247.42139027,0.00040281,30]
[359425222,1746005981774,-565.12905627,0.00040281,120]
[359425223,1746005981799,-160.96946569,0.00040281,120]
[359425224,1746005981824,-1072.86264255,0.00040281,120]
[359425225,1746005981849,-1000.0,0.00040281,120]
[359425226,1746005981873,-1000.0,0.00040281,120]
[359425227,1746005981898,-500.0,0.00040281,120]
[359425228,1746005981922,-989.0,0.00040281,120]
[359425229,1746005981945,-4577.0,0.00040281,120]
[359425230,1746005981968,-2984.0,0.00040281,120]
[359425231,1746005981992,-26485.0,0.00040281,30]
[359425232,1746005982015,-1427.68857211,0.00040281,60]
[359425233,1746005982039,-500.0,0.00040281,30]
[359425234,1746005982062,-685.0,0.00040281,120]
[359425235,1746005982085,-2541.93613008,0.00040281,120]
[359425236,1746005982108,-271.8,0.00040281,120]
[359425237,1746005982132,-414.27334974,0.00040281,120]
[359425238,1746005982277,-2155.88867888,0.00040281,120]
[359425239,1746005982302,-2000.0,0.00040281,120]
[359425240,1746005982333,-2000.0,0.00040281,120]
[359425241,1746005982356,-2000.0,0.00040281,120]
[359425242,1746005982380,-1178.0,0.00040281,120]
[359425243,1746005982403,-4354.67124742,0.00040281,60]
[359425244,1746005982426,-3796.76129418,0.00040281,120]
[359425245,1746005982449,-3624.70685451,0.00040281,120]
[359425246,1746005982472,-3500.17868345,0.00040281,120]
[359425247,1746005982512,-3768.75560439,0.00040281,120]
[359425248,1746005982540,-271.8,0.00040281,120]
[359425249,1746005982567,-7640.4467539,0.00040281,120]
[359425250,1746005982594,-150.0,0.00040281,31]
[359425251,1746005982620,-3287.409777,0.00040281,120]
[359425252,1746005982646,-199.0,0.00040281,30]
[359425253,1746005982671,-535.0,0.00040281,30]
[359425254,1746005982696,-500.0,0.00040281,30]
[359425255,1746005982721,-500.0,0.00040281,60]
[359425256,1746005982745,-500.0,0.00040281,60]
[359425257,1746005982769,-500.0,0.00040281,90]
[359425258,1746005982795,-500.0,0.00040281,90]
[359425259,1746005982819,-8892.0,0.00040281,30]
[359425260,1746005982844,-1854.0,0.00040281,120]
[359425261,1746005982870,-749.86843295,0.00040281,32]
[359425262,1746005982896,-395.01575726,0.00040281,30]
[359425263,1746005982922,-165.77285642,0.00040281,30]
[359425264,1746005982947,-686.48004563,0.00040281,120]
[359425265,1746005982971,-4150.44665482,0.00040281,60]
[359425266,1746005982997,-1770.55330482,0.00040281,30]
[359425267,1746005983022,-1878.8281842,0.00040281,35]
[359425268,1746005983047,-1237.38146522,0.00040281,38]
[359425269,1746005983071,-2000.0,0.00040281,30]
[359425270,1746005983095,-2000.0,0.00040281,30]
[359425271,1746005983118,-940.699999,0.00040281,30]
[359425272,1746005983142,-1503.28990994,0.00040281,120]
[359425273,1746005983166,-2000.0,0.00040281,30]
[359425274,1746005983194,-2479.73656727,0.00040281,120]
[359425275,1746005983219,-2000.0,0.00040281,30]
[359425276,1746005983244,-940.699999,0.00040281,30]
[359425277,1746005983268,-500.1797525,0.00040281,30]
[359425278,1746005983293,-100000.0,0.00040281,30]
[359425279,1746005983317,-100000.0,0.00040281,30]
[359425280,1746005983341,-100000.0,0.00040281,30]
[359425281,1746005983364,-100000.0,0.00040281,30]
[359425282,1746005983389,-100000.0,0.00040281,30]
[359425283,1746005983413,-100000.0,0.00040281,30]
[359425284,1746005983436,-100000.0,0.00040281,30]
[359425285,1746006005789,500.0,0.00040281,30]
[359425330,1746006631767,-300.0,0.00025425,2]
[359425331,1746006631777,-1200.0,0.00025425,2]
[359425332,1746006631786,-3424.30826387,0.00025426,2]
[359425333,1746006631799,-11932.1879139,0.00025426,2]
[359425374,1746006637779,-9543.50382223,0.00025426,2]
[359425376,1746006637789,-708.9279623,0.00025858,2]
[359425378,1746006637799,-519.47581,0.00025948,2]
[359425380,1746006637810,-218.36637992,0.000261,2]
[359425382,1746006637820,-329.718215,0.00026152,2]
[359425384,1746006637831,-305.81467136,0.00026551,2]
[359425386,1746006637842,-218.36637992,0.00026561,2]
[359425388,1746006637851,-305.81467136,0.00026723,2]
[359425390,1746006637860,-313.43553542,0.00027,3]
[359425392,1746006637869,-305.81467136,0.00027051,2]
[359425394,1746006637879,-305.81467137,0.00027152,2]
[359425396,1746006637891,-1412.49726961,0.00027297,2]
[359425398,1746006637901,-1500.0,0.000273,2]
[359425400,1746006637910,-500.0,0.00027373,2]
[359425402,1746006637919,-500.0,0.00027373,2]
[359425404,1746006637928,-500.0,0.00027373,2]
[359425406,1746006637938,-500.0,0.00027373,2]
[359425408,1746006637947,-500.0,0.00027373,2]
[359425410,1746006637957,-300.0,0.00027373,2]
[359425413,1746006637967,-500.0,0.00027373,2]
[359425415,1746006637976,-891.84,0.00027377,3]
[359425416,1746006637986,-218.68,0.00027377,3]
[359425419,1746006637996,-656.08,0.00027377,3]
[359425420,1746006638005,-223.51173643,0.00027386,2]
[359425423,1746006638015,-323523.624631,0.00027387,2]
[359425425,1746006638024,-500.0,0.00027397,2]
[359425426,1746006638035,-400.0,0.00027397,2]
[359425429,1746006638045,-400.0,0.00027397,2]
[359425430,1746006638054,-400.0,0.00027397,2]
[359425432,1746006638064,-200.90644997,0.00027397,2]
[359425434,1746006638074,-400.0,0.00027397,2]
[359425436,1746006638084,-400.0,0.00027397,2]
[359425438,1746006638094,-400.0,0.00027397,2]
[359425441,1746006638104,-400.0,0.00027397,2]
[359425443,1746006638113,-400.0,0.00027397,2]
[359425445,1746006638123,-500.0,0.00027397,2]
[359425447,1746006638132,-500.0,0.00027397,2]
[359425449,1746006638142,-400.0,0.00027397,2]
[359425451,1746006638151,-500.0,0.00027397,2]
[359425453,1746006638160,-400.0,0.00027397,2]
[359425455,1746006638169,-400.0,0.00027397,2]
[359425457,1746006638179,-400.0,0.00027397,2]
[359425459,1746006638188,-400.0,0.00027397,2]
[359425461,1746006638197,-400.0,0.00027397,2]
[359425463,1746006638207,-400.0,0.00027397,2]
[359425465,1746006638218,-500.0,0.00027397,2]
[359425467,1746006638228,-500.78548399,0.00027397,2]
[359425469,1746006638238,-500.0,0.00027397,2]
[359425471,1746006638247,-500.0,0.00027397,2]
[359425473,1746006638256,-502.48606003,0.00027397,2]
[359425475,1746006638265,-501.24933544,0.00027397,2]
[359425477,1746006638274,-501.36534384,0.00027397,2]
[359425479,1746006638283,-502.13602639,0.00027397,2]
[359425481,1746006638293,-500.0,0.00027397,2]
[359425483,1746006638303,-500.0,0.00027397,2]
[359425485,1746006638312,-396.58740917,0.00027397,2]
[359425487,1746006638321,-500.82955958,0.00027397,2]
[359425489,1746006638332,-400.0,0.00027397,2]
[359425491,1746006638342,-500.0,0.00027397,2]
[359425493,1746006638352,-500.0,0.00027397,2]
[359425495,1746006638361,-503.31260402,0.00027397,2]
[359425497,1746006638371,-500.0,0.00027397,2]
[359425499,1746006638380,-500.0,0.00027397,2]
[359425501,1746006638389,-500.0,0.00027397,2]
[359425503,1746006638398,-500.0,0.00027397,2]
[359425505,1746006638408,-400.0,0.00027397,2]
[359425507,1746006638417,-500.0,0.00027397,2]
[359425509,1746006638426,-400.0,0.00027397,2]
[359425511,1746006638437,-400.0,0.00027397,2]
[359425513,1746006638446,-500.0,0.00027397,2]
[359425515,1746006638455,-500.0,0.00027397,2]
[359425517,1746006638465,-516.69999714,0.00027397,2]
[359425519,1746006638474,-500.0,0.00027397,2]
[359425521,1746006638484,-500.0,0.00027397,2]
[359425523,1746006638493,-500.0,0.00027397,2]
[359425525,1746006638502,-400.0,0.00027397,2]
[359425527,1746006638512,-500.0,0.00027397,2]
[359425529,1746006638521,-400.0,0.00027397,2]
[359425531,1746006638531,-500.0,0.00027397,2]
[359425533,1746006638540,-510.72091887,0.00027397,2]
[359425535,1746006638549,-400.0,0.00027397,2]
[359425537,1746006638559,-400.0,0.00027397,2]
[359425539,1746006638569,-500.0,0.00027397,2]
[359425541,1746006638578,-500.0,0.00027397,2]
[359425543,1746006638588,-400.0,0.00027397,2]
[359425545,1746006638597,-400.0,0.00027397,2]
[359425547,1746006638607,-500.0,0.00027397,2]
[359425549,1746006638617,-500.0,0.00027397,2]
[359425551,1746006638626,-418.23,0.00027397,2]
[359425553,1746006638636,-500.0,0.00027397,2]
[359425555,1746006638646,-500.0,0.00027397,2]
[359425557,1746006638656,-400.0,0.00027397,2]
[359425559,1746006638665,-500.0,0.00027397,2]
[359425562,1746006638675,-500.93420192,0.00027397,2]
[359425564,1746006638685,-500.0,0.00027397,2]
[359425566,1746006638694,-400.0,0.00027397,2]
[359425568,1746006638704,-500.64618019,0.00027397,2]
[359425570,1746006638713,-500.0,0.00027397,2]
[359425572,1746006638723,-400.0,0.00027397,2]
[359425574,1746006638733,-500.0,0.00027397,2]
[359425576,1746006638744,-500.0,0.00027397,2]
[359425578,1746006638755,-500.0,0.00027397,2]
[359425580,1746006638765,-500.0,0.00027397,2]
[359425582,1746006638775,-400.0,0.00027397,2]
[359425583,1746006638784,-500.0,0.00027397,2]
[359425585,1746006638795,-535.3132225,0.00027397,2]
[359425588,1746006638805,-512.00374495,0.00027397,2]
[359425590,1746006638814,-400.0,0.00027397,2]
[359425592,1746006638824,-500.0,0.00027397,2]
[359425594,1746006638835,-500.0,0.00027397,2]
[359425596,1746006638845,-500.0,0.00027397,2]
[359425598,1746006638855,-148.10536268,0.00027397,2]
[359425600,1746006638871,-351.89463732,0.00027397,2]
[359425603,1746006638881,-500.0,0.00027397,2]
[359425604,1746006638891,-503.8455047,0.00027397,2]
[359425606,1746006638902,-436.28957237,0.00027397,2]
[359425608,1746006638912,-500.0,0.00027397,2]
[359425610,1746006638922,-500.0,0.00027397,2]
[359425611,1746006638932,-500.0,0.00027397,2]
[359425613,1746006638942,-240.40780845,0.00027397,2]
[359425614,1746006638954,-259.59219155,0.00027397,2]
[359425615,1746006638964,-400.0,0.00027397,2]
[359425616,1746006638974,-500.0,0.00027397,2]
[359425617,1746006638983,-500.0,0.00027397,2]
[359425618,1746006638993,-503.49644708,0.00027397,2]
[359425619,1746006639005,-500.77650852,0.00027397,2]
[359425620,1746006639014,-500.0,0.00027397,2]
[359425621,1746006639024,-400.0,0.00027397,2]
[359425622,1746006639035,-500.0,0.00027397,2]
[359425623,1746006639045,-336.46267821,0.00027397,2]
[359425624,1746006639055,-500.0,0.00027397,2]
[359425625,1746006639065,-500.0,0.00027397,2]
[359425626,1746006639075,-400.0,0.00027397,2]
[359425627,1746006639084,-400.0,0.00027397,2]
[359425628,1746006639094,-500.0,0.00027397,2]
[359425629,1746006639104,-400.0,0.00027397,2]
[359425630,1746006639114,-500.0,0.00027397,2]
[359425631,1746006639124,-400.0,0.00027397,2]
[359425632,1746006639134,-500.0,0.00027397,2]
[359425633,1746006639144,-502.448654,0.00027397,2]
[359425634,1746006639153,-500.0,0.00027397,2]
[359425635,1746006639163,-500.0,0.00027397,2]
[359425636,1746006639172,-400.0,0.00027397,2]
[359425637,1746006639182,-400.0,0.00027397,2]
[359425638,1746006639192,-500.0,0.00027397,2]
[359425639,1746006639201,-500.0,0.00027397,2]
[359425640,1746006639211,-400.0,0.00027397,2]
[359425641,1746006639221,-500.0,0.00027397,2]
[359425642,1746006639231,-503.23147356,0.00027397,2]
[359425643,1746006639241,-500.0,0.00027397,2]
[359425645,1746006639250,-400.0,0.00027397,2]
[359425647,1746006639260,-400.0,0.00027397,2]
[359425648,1746006639269,-500.0,0.00027397,2]
[359425649,1746006639279,-355.83200919,0.00027397,2]
[359425650,1746006639288,-500.0,0.00027397,2]
[359425651,1746006639298,-501.7984162,0.00027397,2]
[359425652,1746006639307,-500.0,0.00027397,2]
[359425653,1746006639317,-400.0,0.00027397,2]
[359425654,1746006639327,-500.76372576,0.00027397,2]
[359425655,1746006639336,-400.0,0.00027397,2]
[359425656,1746006639346,-500.0,0.00027397,2]
[359425657,1746006639355,-400.0,0.00027397,2]
[359425658,1746006639364,-500.0,0.00027397,2]
[359425659,1746006639373,-400.0,0.00027397,2]
[359425660,1746006639383,-500.0,0.00027397,2]
[359425661,1746006639392,-400.0,0.00027397,2]
[359425662,1746006639402,-524.88,0.00027397,2]
[359425663,1746006639411,-500.0,0.00027397,2]
[359425664,1746006639420,-504.69338868,0.00027397,2]
[359425665,1746006639430,-508.83228442,0.00027397,2]
[359425666,1746006639439,-500.0,0.00027397,2]
[359425667,1746006639448,-400.0,0.00027397,2]
[359425669,1746006639458,-500.0,0.00027397,2]
[359425670,1746006639468,-500.0,0.00027397,2]
[359425671,1746006639478,-500.0,0.00027397,2]
[359425672,1746006639488,-400.0,0.00027397,2]
[359425673,1746006639497,-500.0,0.00027397,2]
[359425674,1746006639508,-500.74126443,0.00027397,2]
[359425675,1746006639520,-524.61,0.00027397,2]
[359425676,1746006639531,-500.0,0.00027397,2]
[359425677,1746006639541,-500.0,0.00027397,2]
[359425678,1746006639551,-500.0,0.00027397,2]
[359425679,1746006639562,-500.0,0.00027397,2]
[359425680,1746006639571,-500.0,0.00027397,2]
[359425681,1746006639580,-505.46834272,0.00027397,2]
[359425682,1746006639590,-500.0,0.00027397,2]
[359425683,1746006639599,-400.0,0.00027397,2]
[359425684,1746006639610,-400.0,0.00027397,2]
[359425685,1746006639620,-500.0,0.00027397,2]
[359425686,1746006639629,-500.0,0.00027397,2]
[359425687,1746006639639,-634.01,0.00027397,2]
[359425688,1746006639648,-500.8197871,0.00027397,2]
[359425689,1746006639657,-400.0,0.00027397,2]
[359425690,1746006639667,-400.0,0.00027397,2]
[359425691,1746006639676,-500.0,0.00027397,2]
[359425692,1746006639685,-547.35,0.00027397,2]
[359425693,1746006639694,-500.0,0.00027397,2]
[359425694,1746006639703,-500.0,0.00027397,2]
[359425695,1746006639713,-400.0,0.00027397,2]
[359425696,1746006639875,-400.0,0.00027397,2]
[359425697,1746006639886,-500.0,0.00027397,2]
[359425698,1746006639896,-519.44105473,0.00027397,2]
[359425699,1746006639905,-400.0,0.00027397,2]
[359425700,1746006639914,-537.4,0.00027397,2]
[359425701,1746006639924,-500.0,0.00027397,2]
[359425702,1746006639934,-500.0,0.00027397,2]
[359425703,1746006639943,-500.0,0.00027397,2]
[359425704,1746006639953,-500.0,0.00027397,2]
[359425705,1746006639963,-500.0,0.00027397,2]
[359425706,1746006639972,-500.0,0.00027397,2]
[359425707,1746006639981,-442.68,0.00027397,2]
[359425708,1746006639991,-500.0,0.00027397,2]
[359425709,1746006640000,-400.0,0.00027397,2]
[359425710,1746006640009,-500.0,0.00027397,2]
[359425711,1746006640019,-400.0,0.00027397,2]
[359425712,1746006640028,-400.0,0.00027397,2]
[359425713,1746006640038,-400.0,0.00027397,2]
[359425714,1746006640048,-400.0,0.00027397,2]
[359425715,1746006640057,-500.0,0.00027397,2]
[359425716,1746006640067,-500.0,0.00027397,2]
[359425717,1746006640077,-258.18889669,0.00027397,2]
[359425718,1746006640087,-500.0,0.00027397,2]
[359425719,1746006640097,-500.0,0.00027397,2]
[359425720,1746006640106,-400.0,0.00027397,2]
[359425721,1746006640116,-508.34,0.00027397,2]
[359425722,1746006640126,-500.0,0.00027397,2]
[359425723,1746006640136,-400.0,0.00027397,2]
[359425724,1746006640147,-183.55450046,0.00027397,2]
[359425725,1746006640157,-400.0,0.00027397,2]
[359425726,1746006640167,-500.0,0.00027397,2]
[359425727,1746006640176,-500.0,0.00027397,2]
[359425728,1746006640186,-500.0,0.00027397,2]
[359425729,1746006640196,-500.88804947,0.00027397,2]
[359425730,1746006640205,-400.0,0.00027397,2]
[359425731,1746006640216,-500.0,0.00027397,2]
[359425732,1746006640226,-400.0,0.00027397,2]
[359425733,1746006640235,-400.0,0.00027397,2]
[359425734,1746006640245,-400.0,0.00027397,2]
[359425735,1746006640254,-400.0,0.00027397,2]
[359425736,1746006640263,-400.0,0.00027397,2]
[359425737,1746006640272,-400.0,0.00027397,2]
[359425738,1746006640282,-398.88568723,0.00027397,2]
[359425739,1746006640291,-556.03,0.00027397,2]
[359425740,1746006640300,-500.33781366,0.00027397,2]
[359425741,1746006640310,-400.0,0.00027397,2]
[359425742,1746006640319,-400.0,0.00027397,2]
[359425743,1746006640328,-400.0,0.00027397,2]
[359425744,1746006640337,-400.0,0.00027397,2]
[359425745,1746006640347,-500.0,0.00027397,2]
[359425746,1746006640356,-400.0,0.00027397,2]
[359425747,1746006640365,-879.44,0.00027397,2]
[359425748,1746006640375,-379.03115522,0.00027397,2]
[359425773,1746006643015,-103.09905872,0.00027,3]
[359425774,1746006643032,-78.94147326,0.00027,3]
[359425775,1746006643043,-120.96884478,0.00027397,2]
[359425776,1746006643052,-400.0,0.00027397,2]
[359425777,1746006643064,-349.55968196,0.00027397,2]
[359425784,1746006645924,-50.44031804,0.00027397,2]
[359425785,1746006645934,-400.0,0.00027397,2]
[359425786,1746006645944,-1000.0,0.00027397,2]
[359425787,1746006645954,-500.0,0.00027397,2]
[359425788,1746006645964,-400.0,0.00027397,2]
[359425789,1746006645974,-5.81105396,0.00027397,2]
[359425790,1746006645994,-394.18894604,0.00027397,2]
[359425791,1746006646003,-501.11559276,0.00027397,2]
[359425792,1746006646013,-187.95116925,0.00027397,2]
[359425793,1746006646022,-400.0,0.00027397,2]
[359425794,1746006646032,-1099.81,0.00027397,2]
[359425796,1746006646043,-400.0,0.00027397,2]
[359425797,1746006646053,-562.77,0.00027397,2]
[359425798,1746006646063,-574.88,0.00027397,2]
[359425799,1746006646073,-400.0,0.00027397,2]
[359425800,1746006646083,-400.0,0.00027397,2]
[359425801,1746006646094,-79.28429195,0.00027397,2]
[359425806,1746007251431,1000.0,0.00025,30]
[359427816,1746007796143,633.993,0.00025,30]
[359428351,1746007831960,-263.774572,0.00025775,2]
[359428353,1746007831970,-259.737905,0.00025775,2]
[359428355,1746007831980,-3319.8751357,0.00025992,2]
[359428357,1746007831990,-74.09161764,0.00026609,2]
[359428499,1746007837983,-76.90838236,0.00026609,2]
[359428501,1746007837993,-207.4,0.00026609,2]
[359428503,1746007838003,-415.06165878,0.00026609,2]
[359428510,1746007838087,-84.93834122,0.00026609,2]
[359428512,1746007838097,-581.74430103,0.00026844,2]
[359430832,1746008959146,-300.0,0.00023946,2]
[359430833,1746008959169,-9077.20566063,0.00023947,2]
[359430834,1746009000012,162.52167144,0.0002,10]
[359430835,1746009025559,8000.0,0.00025,30]
[359430845,1746009032204,-220.0,0.00023946,2]
[359430846,1746009032214,-159.56522372,0.00023946,2]
[359430847,1746009032228,-140.43477628,0.00023946,2]
[359430848,1746009032238,-1200.0,0.00023946,2]
[359430849,1746009032248,-300.0,0.00023946,2]
[359430850,1746009032257,-1284.40779851,0.00023946,2]
[359430851,1746009032267,-20403.54662077,0.00023946,3]
[359430852,1746009032277,-12513.52165109,0.00023947,2]
[359430853,1746009032309,-3309.27268828,0.00023947,2]
[359430854,1746009032319,-10023.39577076,0.00024896,2]
[359430855,1746009032331,-521.61715114,0.00024896,2]
[359430856,1746009032343,-5495.01340136,0.00024896,2]
[359430857,1746009032353,-9600.3183718,0.00024896,2]
[359430879,1746009038209,-700.6693413,0.00024792,2]
[359430881,1746009038220,-12592.61399441,0.00024896,3]
[359430882,1746009038234,-17165.22585064,0.00024896,2]
[359430883,1746009038246,-1000.0,0.00024897,2]
[359430884,1746009038256,-197.1073919,0.00024996,2]
[359430885,1746009038267,-249.227439,0.00024997,2]
[359430886,1746009038278,-500.0,0.0002545,2]
[359430887,1746009038287,-300.0,0.00025725,2]
[359430888,1746009038298,-500.0,0.00025725,2]
[359430889,1746009038311,-500.0,0.00025725,2]
[359430890,1746009038322,-305.81467136,0.00025748,2]
[359430891,1746009038331,-500.0,0.0002578,2]
[359430892,1746009038341,-500.0,0.0002578,2]
[359430893,1746009038352,-543.68454058,0.0002578,2]
[359430894,1746009038361,-500.0,0.0002578,2]
[359430895,1746009038371,-500.0,0.0002578,2]
[359430896,1746009038381,-305.81467136,0.0002582,2]
[359430897,1746009038390,-699.34602779,0.00025887,2]
[359430898,1746009038399,-259.7379068,0.00025951,2]
[359430899,1746009038409,-420.0,0.00025969,2]
[359430900,1746009038419,-244.0,0.00025969,2]
[359430901,1746009038429,-474.22864616,0.00025986,2]
[359430902,1746009038439,-193.86355537,0.00025986,2]
[359430903,1746009038448,-500.0,0.00025986,2]
[359430904,1746009038458,-500.0,0.00025986,2]
[359430905,1746009038468,-502.03224543,0.00025986,2]
[359430906,1746009038478,-500.0,0.00025986,2]
[359430907,1746009038488,-500.0,0.00025986,2]
[359430908,1746009038498,-500.0,0.00025986,2]
[359430909,1746009038508,-500.0,0.00025986,2]
[359430910,1746009038519,-500.0,0.00025986,2]
[359430911,1746009038528,-503.52541284,0.00025986,2]
[359430912,1746009038538,-500.0,0.00025986,2]
[359430913,1746009038549,-500.0,0.00025986,2]
[359430914,1746009038558,-500.0,0.00025986,2]
[359430915,1746009038568,-500.0,0.00025986,2]
[359430916,1746009038577,-500.0,0.00025986,2]
[359430917,1746009038587,-500.0,0.00025986,2]
[359430918,1746009038597,-500.0,0.00025986,2]
[359430919,1746009038606,-396.51961773,0.00025986,2]
[359430920,1746009038616,-500.0,0.00025986,2]
[359430921,1746009038626,-500.0,0.00025986,2]
[359430922,1746009038635,-478.38977738,0.00025986,2]
[359430923,1746009038645,-500.0,0.00025986,2]
[359430924,1746009038654,-500.0,0.00025986,2]
[359430925,1746009038664,-500.0,0.00025986,2]
[359430926,1746009038674,-500.0,0.00025986,2]
[359430927,1746009038683,-500.0,0.00025986,2]
[359430928,1746009038693,-500.0,0.00025986,2]
[359430929,1746009038702,-500.0,0.00025986,2]
[359430930,1746009038711,-500.0,0.00025986,2]
[359430931,1746009038721,-500.0,0.00025986,2]
[359430932,1746009038731,-500.0,0.00025986,2]
[359430933,1746009038740,-500.0,0.00025986,2]
[359430934,1746009038750,-500.0,0.00025986,2]
[359430935,1746009038759,-500.0,0.00025986,2]
[359430936,1746009038768,-500.0,0.00025986,2]
[359430937,1746009038778,-500.0,0.00025986,2]
[359430938,1746009038787,-500.0,0.00025986,2]
[359430939,1746009038796,-500.0,0.00025986,2]
[359430940,1746009038806,-500.0,0.00025986,2]
[359430941,1746009038815,-500.0,0.00025986,2]
[359430942,1746009038825,-500.0,0.00025986,2]
[359430943,1746009038835,-500.0,0.00025986,2]
[359430944,1746009038844,-500.0,0.00025986,2]
[359430945,1746009038855,-500.0,0.00025986,2]
[359430946,1746009038864,-500.0,0.00025986,2]
[359430947,1746009038873,-500.0,0.00025986,2]
[359430948,1746009038883,-500.0,0.00025986,2]
[359430949,1746009038893,-500.0,0.00025986,2]
[359430950,1746009038901,-500.0,0.00025986,2]
[359430951,1746009038912,-500.0,0.00025986,2]
[359430952,1746009038923,-500.0,0.00025986,2]
[359430953,1746009038932,-507.26380636,0.00025986,2]
[359430954,1746009038942,-541.98541712,0.00025986,2]
[359430955,1746009038951,-500.0,0.00025986,2]
[359430956,1746009038962,-500.0,0.00025986,2]
[359430957,1746009038972,-68801.445214,0.00025988,2]
[359430958,1746009038982,-470.92045248,0.00025988,2]
[359430959,1746009038994,-840.13752906,0.00025996,3]
[359430960,1746009039004,-182.04053198,0.00025996,3]
[359430961,1746009039015,-160.0,0.00025997,3]
[359430962,1746009039025,-381.6784248,0.00026,2]
[359430963,1746009039034,-209.21427823,0.00026,2]
[359430964,1746009039043,-500.0,0.00026,2]
[359430965,1746009039052,-305.81467136,0.00026073,2]
[359430966,1746009039062,-1680.0,0.00026088,2]
[359430967,1746009039072,-699.34602777,0.0002624,2]